bitfinex/quotes_BTCUSD_20250730
["timestamp","ask_amount","ask_price","bid_price","bid_amount"]
[1753845068009,24.49735944,118150.0,118140.0,0.2169073]
[1753845068449,24.470912,118150.0,118140.0,0.2169073]
[1753845074202,24.470912,118150.0,118140.0,0.0882273]
[1753845074433,24.470912,118150.0,118140.0,0.2169073]
[1753845075184,24.470912,118150.0,118140.0,0.2139073]
[1753845075829,24.470912,118150.0,118140.0,0.2099073]
[1753845076695,24.470912,118150.0,118140.0,0.2119073]
[1753845077066,24.470912,118150.0,118140.0,0.2149073]
[1753845078343,24.52054852,118150.0,118140.0,0.2149073]
[1753845081287,24.470912,118150.0,118140.0,0.2149073]
[1753845081526,24.52054852,118150.0,118140.0,0.2149073]
[1753845085008,24.470912,118150.0,118140.0,0.2149073]
[1753845085210,24.52054852,118150.0,118140.0,0.2149073]
[1753845085426,24.470912,118150.0,118140.0,0.2149073]
[1753845085628,24.52872237,118150.0,118140.0,0.2149073]
[1753845086331,24.5201877,118150.0,118140.0,0.2149073]
[1753845109023,24.5201877,118150.0,118140.0,0.0862273]
[1753845109235,24.54663514,118150.0,118140.0,0.2148673]
[1753845109674,24.88663514,118150.0,118140.0,0.005]
[1753845109920,24.88663514,118150.0,118140.0,0.13364]
[1753845110147,24.88663514,118150.0,118140.0,0.13164]
[1753845110368,24.88663514,118150.0,118140.0,0.12864]
[1753845110604,24.88663514,118150.0,118140.0,0.13064]
[1753845110802,24.88663514,118150.0,118140.0,0.12864]
[1753845111232,24.88663514,118150.0,118140.0,0.12964]
[1753845111440,24.8601877,118150.0,118140.0,0.12964]
[1753845114367,24.8601877,118150.0,118140.0,0.13064]
[1753845115659,24.8601877,118150.0,118140.0,0.12964]
[1753845115877,24.8601877,118150.0,118140.0,0.13064]
[1753845120811,24.97957561,118150.0,118140.0,0.13064]
[1753845121020,25.01395132,118150.0,118140.0,0.13064]
[1753845121231,25.0308788,118150.0,118140.0,0.13064]
[1753845121449,24.9464015,118150.0,118140.0,0.002]
[1753845121652,25.09875143,118150.0,118140.0,0.002]
[1753845121863,29.19995598,118150.0,118140.0,0.002]
[1753845123440,29.03067964,118150.0,118140.0,0.002]
[1753845123853,29.05661535,118150.0,118140.0,0.002]
[1753845125538,29.14109265,118150.0,118140.0,0.002]
[1753845125981,29.62139111,118150.0,118140.0,0.002]
[1753845126166,29.62985456,118150.0,118140.0,0.002]
[1753845126441,29.60340712,118150.0,118140.0,0.002]
[1753845127218,29.60340705,118150.0,118140.0,0.002]
[1753845127450,29.58648043,118150.0,118140.0,0.002]
[1753845127717,29.53684391,118150.0,118140.0,0.002]
[1753845127915,29.45784043,118150.0,118140.0,0.002]
[1753845128123,29.46630374,118150.0,118140.0,0.002]
[1753845128333,29.4663036,118150.0,118140.0,0.002]
[1753845128767,29.47476691,118150.0,118140.0,0.002]
[1753845129001,29.48323036,118150.0,118140.0,0.002]
[1753845130834,29.47476691,118150.0,118140.0,0.002]
[1753845131901,29.48323036,118150.0,118140.0,0.002]
[1753845132351,29.47476691,118150.0,118140.0,0.002]
[1753845132685,29.48323036,118150.0,118140.0,0.002]
[1753845133169,29.47476691,118150.0,118140.0,0.002]
[1753845133322,29.48323036,118150.0,118140.0,0.002]
[1753845134653,29.47476691,118150.0,118140.0,0.002]
[1753845134854,29.4663036,118150.0,118140.0,0.002]
[1753845135060,29.47476691,118150.0,118140.0,0.002]
[1753845135448,29.4663036,118150.0,118140.0,0.002]
[1753845135857,29.47476684,118150.0,118140.0,0.002]
[1753845136281,29.48323022,118150.0,118140.0,0.002]
[1753845136496,29.49169375,118150.0,118140.0,0.002]
[1753845137125,25.38202575,118150.0,118140.0,0.002]
[1753845137355,29.49169375,118150.0,118140.0,0.002]
[1753845139211,29.48323022,118150.0,118140.0,0.002]
[1753845139442,29.46630367,118150.0,118140.0,0.002]
[1753845140465,29.47476698,118150.0,118140.0,0.002]
[1753845141408,29.48323043,118150.0,118140.0,0.002]
[1753845141607,29.47476698,118150.0,118140.0,0.002]
[1753845142019,29.48323043,118150.0,118140.0,0.002]
[1753845142224,29.51814147,118150.0,118140.0,0.002]
[1753845142435,29.50967787,118150.0,118140.0,0.002]
[1753845143002,29.50121442,118150.0,118140.0,0.002]
[1753845143350,29.48428787,118150.0,118140.0,0.002]
[1753845143523,29.50121435,118150.0,118140.0,0.002]
[1753845144107,29.5096778,118150.0,118140.0,0.002]
[1753845144690,29.5181414,118150.0,118140.0,0.002]
[1753845145135,29.51814133,118150.0,118140.0,0.002]
[1753845145381,29.5096778,118150.0,118140.0,0.002]
[1753845145806,29.51814133,118150.0,118140.0,0.002]
[1753845147970,29.526605,118150.0,118140.0,0.002]
[1753845148295,29.52660564,118150.0,118140.0,0.002]
[1753845148503,29.52660557,118150.0,118140.0,0.002]
[1753845148719,29.60261956,118150.0,118140.0,0.002]
[1753845149358,29.59415582,118150.0,118140.0,0.002]
[1753845149796,29.51814233,118150.0,118140.0,0.002]
[1753845150007,29.50967852,118150.0,118140.0,0.002]
[1753845150439,29.51814226,118150.0,118140.0,0.002]
[1753845151825,29.50967881,118150.0,118140.0,0.002]
[1753845152886,29.67049162,118150.0,118140.0,0.002]
[1753845158733,29.90496892,118150.0,118140.0,0.002]
[1753845158932,30.12099845,118150.0,118140.0,0.002]
[1753845159208,30.13959696,118150.0,118140.0,0.002]
[1753845159966,30.26823696,118150.0,118140.0,0.002]
[1753845160974,30.22494237,118150.0,118140.0,0.002]
[1753845161184,30.20662892,118150.0,118140.0,0.002]
[1753845162997,30.18018148,118150.0,118140.0,0.002]
[1753845163410,30.17171781,118150.0,118140.0,0.002]
[1753845163822,30.19816525,118150.0,118140.0,0.002]
[1753845164025,30.28264255,118150.0,118140.0,0.002]
[1753845165293,26.17297455,118150.0,118140.0,0.002]
[1753845165651,30.28264255,118150.0,118140.0,0.002]
[1753845167223,30.19816525,118150.0,118140.0,0.002]
[1753845169424,30.18864515,118150.0,118140.0,0.002]
[1753845170372,30.02783198,118150.0,118140.0,0.002]
[1753845171646,30.18864501,118150.0,118140.0,0.002]
[1753845172764,29.88226486,118150.0,118140.0,0.002]
[1753845172971,29.51434086,118150.0,118140.0,0.02858]
[1753845173179,29.46343079,118150.0,118140.0,0.02858]
[1753845173423,29.47776719,118150.0,118140.0,0.0041]
[1753845173628,29.48069719,118150.0,118140.0,0.0041]
[1753845174044,29.49762446,118150.0,118140.0,0.0041]
[1753845174242,29.51382446,118150.0,118140.0,0.0041]
[1753845174482,29.50536079,118150.0,118140.0,0.0041]
[1753845175171,29.50536079,118150.0,118140.0,0.002]
[1753845176540,29.5138246,118150.0,118140.0,0.002]
[1753845176761,29.54027204,118150.0,118140.0,0.002]
[1753845176952,29.70954838,118150.0,118140.0,0.002]
[1753845177395,29.70108507,118150.0,118140.0,0.002]
[1753845178246,29.69262162,118150.0,118140.0,0.002]
[1753845179264,30.01157622,118150.0,118140.0,0.002]
[1753845179499,30.16157622,118150.0,118140.0,0.002]
[1753845179721,30.17988548,118150.0,118140.0,0.002]
[1753845180271,26.07021748,118150.0,118140.0,0.002]
[1753845180506,30.09540818,118150.0,118140.0,0.002]
[1753845180697,30.09540818,118150.0,118140.0,0.001]
[1753845180698,30.22412818,118150.0,118140.0,0.001]
[1753845181116,30.22512818,118150.0,118140.0,0.001]
[1753845182044,29.78052818,118150.0,118140.0,0.001]
[1753845182294,29.88774042,118150.0,118140.0,0.001]
[1753845182520,29.93774042,118150.0,118140.0,0.001]
[1753845182991,4.70935958,118140.0,118130.0,0.00048207]
[1753845183218,5.0677959,118140.0,118130.0,0.00048207]
[1753845183510,5.09424334,118140.0,118130.0,0.00048207]
[1753845183719,5.19702799,118140.0,118130.0,0.00048207]
[1753845184395,5.19702799,118140.0,118130.0,0.00148207]
[1753845185904,5.19702799,118140.0,118130.0,0.00248207]
[1753845187030,5.21976293,118140.0,118130.0,0.00248207]
[1753845187268,5.24521793,118140.0,118130.0,0.00248207]
[1753845190912,5.22248299,118140.0,118130.0,0.00248207]
[1753845192495,5.56108299,118140.0,118130.0,0.00248207]
[1753845197248,5.47660569,118140.0,118130.0,0.00248207]
[1753845197455,5.45015825,118140.0,118130.0,0.00248207]
[1753845199521,5.47660569,118140.0,118130.0,0.00248207]
[1753845200006,5.45829834,118140.0,118130.0,0.00248207]
[1753845201317,5.47657411,118140.0,118130.0,0.00248207]
[1753845201519,5.56105141,118140.0,118130.0,0.00248207]
[1753845203083,5.61196141,118140.0,118130.0,0.00248207]
[1753845203294,5.56105141,118140.0,118130.0,0.00248207]
[1753845205001,5.47657411,118140.0,118130.0,0.00248207]
[1753845207463,1.36690611,118140.0,118130.0,0.00248207]
[1753845207873,5.47657411,118140.0,118130.0,0.00248207]
[1753845212879,5.58775905,118140.0,118130.0,0.02944207]
[1753845213153,5.58775905,118140.0,118130.0,0.06408207]
[1753845213154,5.13457662,118140.0,118130.0,0.06408207]
[1753845213368,0.9721554,118140.0,118130.0,0.06408207]
[1753845213632,1.34653255,118140.0,118130.0,0.06408207]
[1753845213868,1.34653248,118140.0,118130.0,0.06408207]
[1753845214140,1.33806838,118140.0,118130.0,0.06408207]
[1753845214620,0.83806838,118140.0,118130.0,0.06408207]
[1753845215376,0.84653248,118140.0,118130.0,0.06408207]
[1753845215819,0.83806838,118140.0,118130.0,0.06408207]
[1753845216254,0.84653248,118140.0,118130.0,0.06408207]
[1753845216505,0.83806838,118140.0,118130.0,0.06408207]
[1753845216954,0.79568554,118140.0,118130.0,0.06408207]
[1753845218666,0.81261381,118140.0,118130.0,0.06408207]
[1753845218864,0.81261352,118140.0,118130.0,0.06408207]
[1753845219069,0.82959942,118140.0,118130.0,0.06094207]
[1753845219445,0.82113554,118140.0,118130.0,0.06094207]
[1753845220500,0.82959942,118140.0,118130.0,0.06094207]
[1753845221062,0.82113554,118140.0,118130.0,0.06094207]
[1753845221487,0.82959942,118140.0,118130.0,0.06094207]
[1753845221914,0.79568554,118140.0,118130.0,0.06094207]
[1753845222589,0.80414942,118140.0,118130.0,0.06094207]
[1753845222770,0.79568554,118140.0,118130.0,0.06094207]
[1753845223327,0.80414942,118140.0,118130.0,0.06094207]
[1753845223736,0.79568554,118140.0,118130.0,0.06094207]
[1753845223943,0.79568554,118140.0,118130.0,0.06408207]
[1753845225266,0.77823652,118140.0,118130.0,0.06408207]
[1753845225477,0.7286,118140.0,118130.0,0.06408207]
[1753845226021,0.77823652,118140.0,118130.0,0.06408207]
[1753845226230,0.7286,118140.0,118130.0,0.06408207]
[1753845226433,0.43823652,118140.0,118130.0,0.06408207]
[1753845226632,0.77823652,118140.0,118130.0,0.06408207]
[1753845230399,0.77823652,118140.0,118130.0,0.14855937]
[1753845230607,0.7286,118140.0,118130.0,0.14855937]
[1753845230819,0.3886,118140.0,118130.0,0.14855937]
[1753845231006,0.05,118140.0,118130.0,0.14855937]
[1753845232393,0.05,118140.0,118130.0,0.15705751]
[1753845233554,0.05,118140.0,118130.0,0.15605751]
[1753845233917,0.05,118140.0,118130.0,0.15805751]
[1753845235882,0.05,118140.0,118130.0,0.16005751]
[1753845237281,0.05,118140.0,118130.0,0.15155937]
[1753845249208,0.05,118140.0,118130.0,0.32086437]
[1753845249412,0.05,118140.0,118130.0,0.15155937]
[1753845260921,0.05,118140.0,118130.0,0.14841937]
[1753845265497,24.38837118,118150.0,118130.0,0.31772437]
[1753845265725,24.36193118,118150.0,118140.0,0.43806797]
[1753845265929,24.36193118,118150.0,118140.0,0.2738173]
[1753845266332,24.36193118,118150.0,118140.0,0.44310797]
[1753845267976,24.36193118,118150.0,118140.0,0.44410797]
[1753845268201,24.36193118,118150.0,118140.0,0.44510797]
[1753845270694,24.36193118,118150.0,118140.0,0.2728073]
[1753845271110,24.38605118,118150.0,118140.0,0.2728073]
[1753845271536,24.38909118,118150.0,118140.0,0.2728073]
[1753845272296,24.38909118,118150.0,118140.0,0.2481073]
[1753845272717,24.38909118,118150.0,118140.0,0.2728073]
[1753845273419,24.38909118,118150.0,118140.0,0.2418073]
[1753845274348,24.36193118,118150.0,118140.0,0.44339797]
[1753845274695,24.36193118,118150.0,118140.0,0.44640797]
[1753845275136,24.36193118,118150.0,118140.0,0.44339797]
[1753845275337,24.36193118,118150.0,118140.0,0.45487243]
[1753845275537,24.36193118,118150.0,118140.0,0.4548725]
[1753845276164,24.36193118,118150.0,118140.0,0.46333696]
[1753845276364,24.36193118,118150.0,118140.0,0.44640797]
[1753845276602,24.36193118,118150.0,118140.0,0.46333696]
[1753845276806,24.36193118,118150.0,118140.0,0.4548725]
[1753845277017,24.36193118,118150.0,118140.0,0.46333696]
[1753845277230,24.36193118,118150.0,118140.0,0.4548725]
[1753845277657,24.36193118,118150.0,118140.0,0.46333696]
[1753845277882,24.36193118,118150.0,118140.0,0.4548725]
[1753845278295,24.36193118,118150.0,118140.0,0.46333696]
[1753845278678,24.36193118,118150.0,118140.0,0.46032696]
[1753845278880,24.36193118,118150.0,118140.0,0.46879135]
[1753845279081,24.36193118,118150.0,118140.0,0.4518625]
[1753845279276,24.36193118,118150.0,118140.0,0.44339797]
[1753845279485,24.36193118,118150.0,118140.0,0.45186236]
[1753845279708,24.36193118,118150.0,118140.0,0.44339797]
[1753845279912,24.36193118,118150.0,118140.0,0.4718007]
[1753845280134,24.36193118,118150.0,118140.0,0.47216418]
[1753845280355,24.36193118,118150.0,118140.0,0.49759918]
[1753845280806,24.36193118,118150.0,118140.0,0.49659918]
[1753845281070,24.36193118,118150.0,118140.0,0.49559918]
[1753845281302,24.36193118,118150.0,118140.0,0.49859918]
[1753845281515,24.36193118,118150.0,118140.0,0.50359918]
[1753845282654,24.36193118,118150.0,118140.0,0.50059918]
[1753845283061,24.36193118,118150.0,118140.0,0.50459918]
[1753845285897,24.36171659,118150.0,118140.0,0.50459918]
[1753845286327,24.36171659,118150.0,118140.0,0.50158918]
[1753845286548,24.36171659,118150.0,118140.0,0.49312515]
[1753845286760,24.36171659,118150.0,118140.0,0.50158932]
[1753845286968,24.38583659,118150.0,118140.0,0.50158932]
[1753845287180,24.38583659,118150.0,118140.0,0.51005342]
[1753845287391,24.38583659,118150.0,118140.0,0.50968994]
[1753845287633,24.38583659,118150.0,118140.0,0.51005342]
[1753845287834,24.38583659,118150.0,118140.0,0.51851745]
[1753845288887,24.38583659,118150.0,118140.0,0.51815397]
[1753845289014,24.38583659,118150.0,118140.0,0.51851745]
[1753845290890,24.38583659,118150.0,118140.0,0.51815397]
[1753845291061,24.38583659,118150.0,118140.0,0.51851745]
[1753845292782,24.38898659,118150.0,118140.0,0.51851745]
[1753845294209,24.38698748,118150.0,118140.0,0.51851745]
[1753845294839,24.35971748,118150.0,118140.0,0.51851745]
[1753845296393,24.38395748,118150.0,118140.0,0.51851745]
[1753845297146,24.38710748,118150.0,118140.0,0.51851745]
[1753845297370,24.35971748,118150.0,118140.0,0.51851745]
[1753845297581,24.35971748,118150.0,118140.0,0.52170745]
[1753845297790,24.29439203,118150.0,118140.0,0.52170745]
[1753845297990,24.16056682,118150.0,118140.0,0.52170745]
[1753845298929,24.16056682,118150.0,118140.0,0.86170745]
[1753845299476,24.16056682,118150.0,118140.0,0.87915647]
[1753845300639,24.16056682,118150.0,118140.0,0.87596647]
[1753845301709,24.18480682,118150.0,118140.0,0.87596647]
[1753845303465,24.18480682,118150.0,118140.0,1.14076647]
[1753845304041,24.16056682,118150.0,118140.0,1.14076647]
[1753845305326,24.18480682,118150.0,118140.0,1.14076647]
[1753845307062,24.18795682,118150.0,118140.0,1.14076647]
[1753845307282,24.18795682,118150.0,118140.0,1.11606647]
[1753845312394,24.18795682,118150.0,118140.0,0.90183091]
[1753845312618,24.21985682,118150.0,118140.0,1.04835947]
[1753845312822,24.20425682,118150.0,118140.0,1.0568235]
[1753845313041,24.18795682,118150.0,118140.0,1.0568235]
[1753845313456,24.18795682,118150.0,118140.0,1.04835947]
[1753845313667,24.18795682,118150.0,118140.0,1.05682357]
[1753845314753,24.18795682,118150.0,118140.0,1.04835947]
[1753845315005,24.20345682,118150.0,118140.0,1.04835947]
[1753845315223,24.20345682,118150.0,118140.0,0.79202357]
[1753845315877,24.20345682,118150.0,118140.0,0.8004876]
[1753845316098,24.20345682,118150.0,118140.0,0.79202357]
[1753845316751,24.20345682,118150.0,118140.0,0.78355947]
[1753845317408,24.20345682,118150.0,118140.0,0.8004876]
[1753845319543,24.18795682,118150.0,118140.0,0.8004876]
[1753845319986,24.18795682,118150.0,118140.0,0.8024976]
[1753845320189,24.18795682,118150.0,118140.0,0.8578076]
[1753845320572,24.18480682,118150.0,118140.0,0.8578076]
[1753845321443,24.18777682,118150.0,118140.0,0.8024976]
[1753845321856,24.18777682,118150.0,118140.0,0.8004876]
[1753845326864,24.21897682,118150.0,118140.0,0.28856645]
[1753845327094,24.21897682,118150.0,118140.0,0.4433162]
[1753845327309,24.21897682,118150.0,118140.0,0.44367968]
[1753845327523,24.21897682,118150.0,118140.0,0.45214378]
[1753845327728,24.21897682,118150.0,118140.0,0.44367968]
[1753845327944,24.21897682,118150.0,118140.0,0.45178037]
[1753845328705,24.21897682,118150.0,118140.0,0.4433162]
[1753845328940,24.21897682,118150.0,118140.0,0.1189123]
[1753845329184,24.21897682,118150.0,118140.0,0.2485523]
[1753845329419,24.21897682,118150.0,118140.0,0.41784297]
[1753845329849,24.21897682,118150.0,118140.0,0.4263075]
[1753845330256,24.21897682,118150.0,118140.0,0.44323635]
[1753845330499,24.21897682,118150.0,118140.0,0.43477196]
[1753845330672,24.21897682,118150.0,118140.0,0.44323635]
[1753845330893,24.21897682,118150.0,118140.0,0.43477196]
[1753845331094,24.21897682,118150.0,118140.0,0.44323635]
[1753845331300,24.21897682,118150.0,118140.0,0.43477196]
[1753845331860,24.21897682,118150.0,118140.0,0.44323635]
[1753845332001,24.21897682,118150.0,118140.0,0.43477196]
[1753845332639,24.21897682,118150.0,118140.0,0.4263075]
[1753845333300,24.21897682,118150.0,118140.0,0.43477189]
[1753845333501,24.21897682,118150.0,118140.0,0.43477196]
[1753845333630,24.21897682,118150.0,118140.0,0.44323635]
[1753845334440,24.21897682,118150.0,118140.0,0.45170066]
[1753845334841,24.21897682,118150.0,118140.0,0.44323635]
[1753845335561,24.21897682,118150.0,118140.0,0.4263075]
[1753845335935,24.21897682,118150.0,118140.0,0.2485523]
[1753845338327,24.21897682,118150.0,118140.0,0.42630743]
[1753845338737,24.21897682,118150.0,118140.0,0.41784297]
[1753845339402,24.21897682,118150.0,118140.0,0.2485523]
[1753845341414,24.21897682,118150.0,118140.0,0.41784297]
[1753845342360,24.19397637,118150.0,118140.0,0.41784297]
[1753845342854,24.19397637,118150.0,118140.0,0.2485523]
[1753845345211,24.19397637,118150.0,118140.0,0.1189123]
[1753845345332,24.19397637,118150.0,118140.0,0.2230773]
[1753845345533,24.24397637,118150.0,118140.0,0.2230773]
[1753845356616,24.24397637,118150.0,118140.0,0.0934773]
[1753845356829,24.24397637,118150.0,118140.0,0.2230373]
[1753845391960,24.24397637,118150.0,118140.0,0.0934773]
[1753845392182,24.66856591,118150.0,118140.0,0.009]
[1753845392372,24.69130085,118150.0,118140.0,0.13832]
[1753845392588,24.69130085,118150.0,118140.0,0.009]
[1753845392785,24.69130085,118150.0,118140.0,0.13432]
[1753845392990,24.66856591,118150.0,118140.0,0.13432]
[1753845393186,24.64211847,118150.0,118140.0,0.13232]
[1753845393645,24.64211847,118150.0,118140.0,0.13332]
[1753845393864,24.64211847,118150.0,118140.0,0.13032]
[1753845394083,24.64211847,118150.0,118140.0,0.13132]
[1753845406017,24.64211847,118150.0,118140.0,0.002]
[1753845406258,24.64211847,118150.0,118140.0,0.1314]
[1753845420720,24.64211847,118150.0,118140.0,0.13148]
[1753845420923,24.64211847,118150.0,118140.0,0.002]
[1753845421128,24.64211847,118150.0,118140.0,0.13148]
[1753845437116,24.58361289,118150.0,118140.0,0.13148]
[1753845437320,24.52520289,118150.0,118140.0,0.2443573]
[1753845437521,24.57520289,118150.0,118140.0,0.2769573]
[1753845438860,24.57520289,118150.0,118140.0,0.2740273]
[1753845439057,24.57520289,118150.0,118140.0,0.2580273]
[1753845439329,24.57520289,118150.0,118140.0,0.2414273]
[1753845441909,24.59844289,118150.0,118140.0,0.2414273]
[1753845443571,24.59844289,118150.0,118140.0,0.3414273]
[1753845444681,24.57520289,118150.0,118140.0,0.3414273]
[1753845444826,24.57520289,118150.0,118140.0,0.3740273]
[1753845445930,24.57520289,118150.0,118140.0,0.3414273]
[1753845447320,24.57520289,118150.0,118140.0,0.3738273]
[1753845449668,24.57520289,118150.0,118140.0,0.3414273]
[1753845449872,24.57520289,118150.0,118140.0,0.3732273]
[1753845452147,24.23520289,118150.0,118140.0,0.3732273]
[1753845452367,24.18556637,118150.0,118140.0,0.3762973]
[1753845452984,24.18556637,118150.0,118140.0,0.3732273]
[1753845455464,24.13556637,118150.0,118140.0,0.3762973]
[1753845455689,24.13556637,118150.0,118140.0,0.54558797]
[1753845455907,24.13556637,118150.0,118140.0,0.3762973]
[1753845460629,24.13556637,118150.0,118140.0,0.3732273]
[1753845460858,24.13556637,118150.0,118140.0,0.5540525]
[1753845461080,24.13556637,118150.0,118140.0,0.57944523]
[1753845461716,24.13556637,118150.0,118140.0,0.60487923]
[1753845461930,24.13556637,118150.0,118140.0,0.60387923]
[1753845462407,24.13556637,118150.0,118140.0,0.60887923]
[1753845462624,24.13556637,118150.0,118140.0,0.60787923]
[1753845463062,24.13556637,118150.0,118140.0,0.61087923]
[1753845468057,24.13556637,118150.0,118140.0,0.96832825]
[1753845468307,24.13556637,118150.0,118140.0,0.96869173]
[1753845472022,24.13556637,118150.0,118140.0,1.23349173]
[1753845478117,24.13556637,118150.0,118140.0,1.23042173]
[1753845479927,24.13556637,118150.0,118140.0,0.96562173]
[1753845480956,24.16308637,118150.0,118140.0,0.94173173]
[1753845481185,24.16308637,118150.0,118140.0,0.761423]
[1753845481385,24.16308637,118150.0,118140.0,0.39566636]
[1753845481592,24.19418637,118150.0,118140.0,0.72806636]
[1753845481829,24.17858637,118150.0,118140.0,0.75345894]
[1753845482030,24.16308637,118150.0,118140.0,0.75345901]
[1753845482430,24.16308637,118150.0,118140.0,0.74499491]
[1753845482617,24.19418637,118150.0,118140.0,0.5249973]
[1753845482842,24.19418637,118150.0,118140.0,0.3958773]
[1753845483032,24.19418637,118150.0,118140.0,0.5249973]
[1753845483660,24.19418637,118150.0,118140.0,0.7027525]
[1753845483860,24.19418637,118150.0,118140.0,0.71121696]
[1753845484063,24.19418637,118150.0,118140.0,0.71968135]
[1753845484274,24.19418637,118150.0,118140.0,0.71121696]
[1753845484475,24.19418637,118150.0,118140.0,0.69428797]
[1753845484934,24.19418637,118150.0,118140.0,0.71121696]
[1753845485124,24.19418637,118150.0,118140.0,0.71968135]
[1753845485774,24.19418637,118150.0,118140.0,0.7027525]
[1753845486193,24.19418637,118150.0,118140.0,0.71968135]
[1753845486700,24.19418637,118150.0,118140.0,0.7027525]
[1753845486844,24.19418637,118150.0,118140.0,0.69428797]
[1753845488516,24.19418637,118150.0,118140.0,0.7027525]
[1753845488714,24.19418637,118150.0,118140.0,0.71968135]
[1753845488940,24.19418637,118150.0,118140.0,0.71121696]
[1753845489132,24.19418637,118150.0,118140.0,0.7027525]
[1753845489431,24.19418637,118150.0,118140.0,0.69428797]
[1753845491184,24.19418637,118150.0,118140.0,0.7027525]
[1753845491838,24.19418637,118150.0,118140.0,0.71121696]
[1753845492016,24.19418637,118150.0,118140.0,0.7027525]
[1753845492222,24.19418637,118150.0,118140.0,0.69428797]
[1753845493264,24.19418637,118150.0,118140.0,0.5249973]
[1753845494127,24.19418637,118150.0,118140.0,0.7027525]
[1753845494354,24.19418637,118150.0,118140.0,0.71121696]
[1753845495283,24.19418637,118150.0,118140.0,0.7027525]
[1753845495834,24.19418637,118150.0,118140.0,0.7029125]
[1753845496520,24.19418637,118150.0,118140.0,0.5736325]
[1753845496733,24.19418637,118150.0,118140.0,0.71137696]
[1753845496962,24.19418637,118150.0,118140.0,0.7029125]
[1753845498068,24.19418637,118150.0,118140.0,0.71137689]
[1753845498284,24.19418637,118150.0,118140.0,0.7029125]
[1753845498707,24.19418637,118150.0,118140.0,0.71137696]
[1753845499400,24.19418637,118150.0,118140.0,0.69444797]
[1753845500017,24.19418637,118150.0,118140.0,0.7029125]
[1753845500436,24.19418637,118150.0,118140.0,0.71137696]
[1753845501424,24.19418637,118150.0,118140.0,0.7029125]
[1753845501656,24.19418637,118150.0,118140.0,0.71137696]
[1753845502144,24.19418637,118150.0,118140.0,0.7029125]
[1753845502728,24.19418637,118150.0,118140.0,0.71137696]
[1753845503110,24.19418637,118150.0,118140.0,0.7029125]
[1753845503844,24.19418637,118150.0,118140.0,0.71137696]
[1753845505773,24.19418637,118150.0,118140.0,0.69444797]
[1753845506057,24.19418637,118150.0,118140.0,0.5251573]
[1753845506274,24.19418637,118150.0,118140.0,0.3958773]
[1753845506512,24.19418637,118150.0,118140.0,0.5250373]
[1753845506720,24.19418637,118150.0,118140.0,0.3958773]
[1753845506894,24.19418637,118150.0,118140.0,0.5250373]
[1753845507969,24.19418637,118150.0,118140.0,0.3958773]
[1753845508175,24.19418637,118150.0,118140.0,0.5250373]
[1753845508944,24.19418637,118150.0,118140.0,0.5220373]
[1753845509154,24.19418637,118150.0,118140.0,0.5170373]
[1753845509362,24.19418637,118150.0,118140.0,0.5190373]
[1753845509590,24.19418637,118150.0,118140.0,0.5220373]
[1753845519462,24.19418637,118150.0,118140.0,0.3186373]
[1753845520071,24.19418637,118150.0,118140.0,0.3185573]
[1753845525885,24.16308637,118150.0,118140.0,0.51409797]
[1753845526083,24.13556637,118150.0,118140.0,0.5742407]
[1753845526341,24.13556637,118150.0,118140.0,0.59121167]
[1753845526549,24.13556637,118150.0,118140.0,0.59121174]
[1753845526758,24.13556637,118150.0,118140.0,0.59967598]
[1753845526934,24.13556637,118150.0,118140.0,0.59121174]
[1753845527478,24.13556637,118150.0,118140.0,0.57428297]
[1753845527667,24.13556637,118150.0,118140.0,0.58274743]
[1753845528338,24.13556637,118150.0,118140.0,0.57969743]
[1753845528966,24.13556637,118150.0,118140.0,0.59662613]
[1753845529564,24.13556637,118150.0,118140.0,0.58816182]
[1753845530200,24.13556637,118150.0,118140.0,0.59662613]
[1753845530729,24.13556637,118150.0,118140.0,0.56492613]
[1753845530941,24.13556637,118150.0,118140.0,0.55646182]
[1753845531334,24.13556637,118150.0,118140.0,0.56492606]
[1753845531566,24.13556637,118150.0,118140.0,0.56492613]
[1753845532011,24.13556637,118150.0,118140.0,0.55646182]
[1753845532789,24.13556637,118150.0,118140.0,0.54799743]
[1753845533189,24.15825637,118150.0,118140.0,0.53953297]
[1753845533411,24.16150637,118150.0,118140.0,0.51530297]
[1753845536060,24.16150637,118150.0,118140.0,0.5237675]
[1753845536551,24.16150637,118150.0,118140.0,0.51530297]
[1753845538364,24.16150637,118150.0,118140.0,0.5237675]
[1753845538962,24.16150637,118150.0,118140.0,0.54069635]
[1753845539586,24.16150637,118150.0,118140.0,0.53223196]
[1753845539994,24.16150637,118150.0,118140.0,0.54069635]
[1753845540199,24.16150637,118150.0,118140.0,0.53223196]
[1753845540601,24.16150637,118150.0,118140.0,0.54069635]
[1753845541435,24.16150637,118150.0,118140.0,0.54916052]
[1753845541651,24.16150637,118150.0,118140.0,0.57232059]
[1753845541867,24.16150637,118150.0,118140.0,0.57232066]
[1753845542511,24.16150637,118150.0,118140.0,0.56385635]
[1753845542713,24.16150637,118150.0,118140.0,0.55539196]
[1753845543266,24.16150637,118150.0,118140.0,0.57232066]
[1753845543473,24.16150637,118150.0,118140.0,0.56385635]
[1753845543696,24.16150637,118150.0,118140.0,0.57232066]
[1753845545142,24.16150637,118150.0,118140.0,0.5807849]
[1753845545339,24.16150637,118150.0,118140.0,0.57232066]
[1753845545944,24.16150637,118150.0,118140.0,0.55539196]
[1753845546301,24.16150637,118150.0,118140.0,0.54069635]
[1753845546509,24.16150637,118150.0,118140.0,0.53223196]
[1753845546716,24.17720637,118150.0,118140.0,0.51328297]
[1753845547111,24.19290637,118150.0,118140.0,0.51328297]
[1753845549552,24.19290637,118150.0,118140.0,0.3440723]
[1753845549776,24.19290637,118150.0,118140.0,0.2149123]
[1753845549993,24.19290637,118150.0,118140.0,0.3186373]
[1753845550635,24.29254289,118150.0,118140.0,0.3186373]
[1753845551385,24.29254289,118150.0,118140.0,0.1894773]
[1753845551595,24.29254289,118150.0,118140.0,0.3187973]
[1753845552400,24.29254289,118150.0,118140.0,0.3157973]
[1753845552739,24.29254289,118150.0,118140.0,0.3177973]
[1753845552952,24.24290637,118150.0,118140.0,0.3177973]
[1753845553147,24.29254289,118150.0,118140.0,0.3177973]
[1753845553358,24.29254289,118150.0,118140.0,0.3157973]
[1753845553791,24.29254289,118150.0,118140.0,0.3167973]
[1753845558834,24.24290637,118150.0,118140.0,0.3167973]
[1753845559071,24.29254289,118150.0,118140.0,0.3167973]
[1753845561220,24.24290637,118150.0,118140.0,0.3167973]
[1753845561426,24.29254289,118150.0,118140.0,0.3167973]
[1753845568250,24.24290637,118150.0,118140.0,0.3167973]
[1753845568707,24.29254289,118150.0,118140.0,0.3167973]
[1753845592780,24.23929289,118150.0,118140.0,0.3187573]
[1753845592992,24.13556637,118150.0,118140.0,0.3762473]